fUST/lending_fUST_20240726
["ID","MTS","AMOUNT","RATE_DAILY","PERIOD"]
[333259032,1721998238456,-500.0,0.00013785,2]
[333259033,1721998238467,-1435.11,0.00013785,2]
[333259034,1721998238484,-879.57,0.00013785,2]
[333259035,1721998238495,-500.0,0.00013785,2]
[333259036,1721998238505,-848.34,0.00013785,2]
[333259037,1721998238515,-500.0,0.00013785,2]
[333259038,1721998238525,-604.97,0.00013785,2]
[333259039,1721998238535,-500.0,0.00013785,2]
[333259040,1721998238544,-500.0,0.00013785,2]
[333259041,1721998238554,-658.82,0.00013785,2]
[333259042,1721998238565,-825.36,0.00013785,2]
[333259043,1721998238575,-500.0,0.00013785,2]
[333259044,1721998238584,-500.0,0.00013785,2]
[333259045,1721998238594,-1439.07,0.00013785,2]
[333259046,1721998238604,-814.46,0.00013785,2]
[333259047,1721998238613,-500.0,0.00013785,2]
[333259048,1721998238623,-500.0,0.00013785,2]
[333259049,1721998238633,-500.0,0.00013785,2]
[333259050,1721998238646,-848.03,0.00013785,2]
[333259051,1721998238658,-525.89,0.00013785,2]
[333259052,1721998238668,-500.0,0.00013785,2]
[333259053,1721998238680,-500.0,0.00013785,2]
[333259054,1721998238690,-500.0,0.00013785,2]
[333259055,1721998238699,-500.0,0.00013785,2]
[333259056,1721998238708,-500.0,0.00013785,2]
[333259057,1721998238718,-742.79,0.00013785,2]
[333259058,1721998238727,-260.035117,0.00013786,2]
[333259059,1721998238736,-260.035117,0.00013786,2]
[333259060,1721998238745,-255.0,0.00013786,2]
[333259061,1721998238755,-500.0,0.00013795,2]
[333259062,1721998238765,-500.0,0.00013795,2]
[333259063,1721998238775,-260.035117,0.00013796,2]
[333259064,1721998238785,-260.035117,0.00013796,2]
[333259065,1721998238794,-166.666666,0.00013914,2]
[333259066,1721998238804,-500.0,0.00013972,2]
[333259067,1721998238814,-500.0,0.00013972,2]
[333259068,1721998238823,-570.16,0.00013972,2]
[333259069,1721998238833,-500.0,0.00013972,2]
[333259070,1721998238843,-502.75,0.00013972,2]
[333259071,1721998238853,-937.48,0.00013972,2]
[333259072,1721998238864,-500.0,0.00013972,2]
[333259073,1721998238873,-500.0,0.00013972,2]
[333259074,1721998238883,-500.0,0.00014048,2]
[333259075,1721998238895,-500.0,0.00014048,2]
[333259076,1721998238905,-151.0,0.00014049,2]
[333259077,1721998238915,-260.035117,0.00014049,2]
[333259078,1721998238926,-260.035117,0.00014049,2]
[333259079,1721998238937,-631.046236,0.00014049,2]
[333259080,1721998238948,-631.046236,0.00014049,2]
[333259081,1721998238960,-3015.32853953,0.00014049,2]
[333259082,1721998238970,-373.22337155,0.00014049,2]
[333259083,1721998238979,-500.0,0.00014049,2]
[333259084,1721998238989,-500.0,0.00014049,2]
[333259085,1721998238999,-500.0,0.00014049,2]
[333259086,1721998239009,-151.0,0.0001405,2]
[333259087,1721998239018,-151.0,0.0001405,2]
[333259088,1721998239027,-151.0,0.0001405,2]
[333259089,1721998239037,-151.0,0.0001405,2]
[333259090,1721998239047,-151.0,0.0001405,2]
[333259091,1721998239057,-151.0,0.0001405,2]
[333259092,1721998239067,-368.960232,0.0001405,2]
[333259093,1721998239077,-368.960232,0.0001405,2]
[333259094,1721998239087,-151.0,0.0001405,2]
[333259095,1721998239099,-151.0,0.0001405,2]
[333259096,1721998239110,-151.0,0.0001405,2]
[333259097,1721998239121,-260.035117,0.0001405,2]
[333259098,1721998239132,-260.035117,0.0001405,2]
[333259099,1721998239143,-260.035117,0.0001405,2]
[333259100,1721998239154,-260.035117,0.0001405,2]
[333259101,1721998239165,-631.046236,0.0001405,2]
[333259102,1721998239174,-631.046236,0.0001405,2]
[333259103,1721998239189,-631.046236,0.0001405,2]
[333259104,1721998239199,-631.046236,0.0001405,2]
[333259105,1721998239212,-500.0,0.0001405,2]
[333259106,1721998239224,-500.0,0.0001405,2]
[333259107,1721998239237,-500.0,0.0001405,2]
[333259108,1721998239249,-1409.0,0.00014057,2]
[333259109,1721998239264,-250.455,0.00014057,2]
[333259110,1721998239274,-500.0,0.00014058,2]
[333259111,1721998239285,-707.1,0.00014058,2]
[333259112,1721998239295,-2286.64,0.00014058,2]
[333259113,1721998239306,-584.0,0.00014058,2]
[333259114,1721998239316,-4420.26,0.00014058,2]
[333259115,1721998239327,-500.0,0.00014058,2]
[333259116,1721998239337,-2650.52,0.00014058,2]
[333259117,1721998239347,-844.35,0.00014058,2]
[333259118,1721998239357,-658.46,0.00014058,2]
[333259119,1721998239367,-881.81,0.00014058,2]
[333259120,1721998239377,-640.6,0.00014058,2]
[333259121,1721998239386,-755.57,0.00014058,2]
[333259122,1721998239398,-500.0,0.00014058,2]
[333259123,1721998239408,-650.83,0.00014058,2]
[333259124,1721998239418,-500.0,0.00014058,2]
[333259125,1721998239430,-500.0,0.00014058,2]
[333259126,1721998239440,-500.0,0.00014058,2]
[333259127,1721998239452,-500.0,0.00014058,2]
[333259128,1721998239464,-1905.13,0.00014058,2]
[333259129,1721998239483,-226.314294,0.00014058,2]
[333259130,1721998239505,-500.0,0.00014058,2]
[333259131,1721998239528,-500.0,0.00014058,2]
[333259133,1721998239551,-500.0,0.00014058,2]
[333259135,1721998239573,-500.0,0.00014058,2]
[333259137,1721998239597,-875.86,0.00014058,2]
[333259138,1721998239617,-500.0,0.00014058,2]
[333259139,1721998239641,-500.0,0.00014058,2]
[333259140,1721998239662,-335.08686779,0.00014058,2]
[333259141,1721998239684,-500.0,0.00014058,2]
[333259142,1721998239700,-500.0,0.00014058,2]
[333259143,1721998239721,-538.83,0.00014059,2]
[333259144,1721998239730,-151.0,0.00014059,2]
[333259145,1721998239741,-611.7,0.00014059,2]
[333259146,1721998239751,-151.0,0.00014059,2]
[333259147,1721998239763,-1256.55,0.00014059,2]
[333259149,1721998239774,-151.0,0.00014059,2]
[333259151,1721998239784,-500.0,0.00014059,2]
[333259152,1721998239794,-352.95601606,0.00014059,2]
[333259153,1721998239803,-151.0,0.00014059,2]
[333259154,1721998239813,-500.0,0.00014059,2]
[333259155,1721998239823,-542.61,0.00014059,2]
[333259156,1721998239833,-893.43,0.00014059,2]
[333259157,1721998239843,-500.0,0.00014059,2]
[333259158,1721998239852,-500.0,0.00014059,2]
[333259160,1721998239862,-500.0,0.00014059,2]
[333259163,1721998239872,-500.0,0.00014059,2]
[333259165,1721998239882,-368.960232,0.00014059,2]
[333259167,1721998239892,-368.960232,0.00014059,2]
[333259169,1721998239902,-692.32,0.00014059,2]
[333259171,1721998239911,-597.39,0.00014059,2]
[333259172,1721998239921,-922.88,0.00014059,2]
[333259174,1721998239931,-500.0,0.00014059,2]
[333259176,1721998239941,-500.0,0.00014059,2]
[333259178,1721998239951,-462.72669245,0.00014059,2]
[333259179,1721998239961,-565.03,0.00014059,2]
[333259180,1721998239971,-575.55,0.00014059,2]
[333259181,1721998239981,-500.0,0.00014059,2]
[333259182,1721998239991,-500.0,0.00014059,2]
[333259183,1721998240001,-500.0,0.00014059,2]
[333259184,1721998240010,-571.03,0.00014059,2]
[333259185,1721998240020,-500.0,0.00014059,2]
[333259187,1721998240030,-500.0,0.00014059,2]
[333259188,1721998240040,-1098.11,0.00014059,2]
[333259189,1721998240049,-500.0,0.00014059,2]
[333259190,1721998240059,-790.2,0.00014059,2]
[333259191,1721998240069,-500.0,0.00014059,2]
[333259192,1721998240080,-1498.14,0.00014059,2]
[333259193,1721998240090,-500.0,0.00014059,2]
[333259194,1721998240099,-793.79,0.00014059,2]
[333259195,1721998240109,-1120.19,0.00014059,2]
[333259196,1721998240120,-1290.54,0.00014059,2]
[333259197,1721998240130,-705.29,0.00014059,2]
[333259198,1721998240142,-4940.57,0.00014059,2]
[333259199,1721998240152,-500.0,0.00014059,2]
[333259200,1721998240162,-885.79,0.00014059,2]
[333259201,1721998240172,-500.0,0.00014059,2]
[333259202,1721998240182,-500.0,0.00014059,2]
[333259203,1721998240196,-500.0,0.00014059,2]
[333259204,1721998240205,-773.95,0.00014059,2]
[333259205,1721998240215,-529.92,0.00014059,2]
[333259206,1721998240225,-500.0,0.00014059,2]
[333259207,1721998240236,-793.79,0.00014059,2]
[333259208,1721998240246,-500.0,0.00014059,2]
[333259209,1721998240255,-500.0,0.00014059,2]
[333259210,1721998240268,-500.0,0.00014059,2]
[333259211,1721998240278,-6334.19,0.00014059,2]
[333259212,1721998240289,-500.0,0.00014059,2]
[333259213,1721998240298,-500.0,0.00014059,2]
[333259214,1721998240308,-1339.65,0.00014059,2]
[333259215,1721998240318,-827.86,0.00014059,2]
[333259216,1721998240328,-2698.27,0.00014059,2]
[333259217,1721998240339,-2071.04,0.00014059,2]
[333259218,1721998240348,-1295.05,0.00014059,2]
[333259219,1721998240358,-500.0,0.00014059,2]
[333259220,1721998240368,-1435.11,0.00014059,2]
[333259221,1721998240378,-879.57,0.00014059,2]
[333259222,1721998240388,-500.0,0.00014059,2]
[333259223,1721998240400,-848.34,0.00014059,2]
[333259224,1721998240410,-500.0,0.00014059,2]
[333259225,1721998240419,-604.97,0.00014059,2]
[333259226,1721998240428,-500.0,0.00014059,2]
[333259227,1721998240438,-500.0,0.00014059,2]
[333259228,1721998240448,-658.82,0.00014059,2]
[333259229,1721998240458,-825.36,0.00014059,2]
[333259230,1721998240469,-500.0,0.00014059,2]
[333259231,1721998240479,-500.0,0.00014059,2]
[333259232,1721998240488,-1439.07,0.00014059,2]
[333259233,1721998240498,-814.46,0.00014059,2]
[333259234,1721998240508,-500.0,0.00014059,2]
[333259235,1721998240517,-500.0,0.00014059,2]
[333259236,1721998240528,-249.1914133,0.00014059,2]
[333259237,1721998240538,-848.03,0.00014059,2]
[333259238,1721998240550,-525.89,0.00014059,2]
[333259239,1721998240561,-500.0,0.00014059,2]
[333259240,1721998240572,-500.0,0.00014059,2]
[333259241,1721998240584,-500.0,0.00014059,2]
[333259242,1721998240594,-742.79,0.00014059,2]
[333259243,1721998240603,-151.0,0.00014061,2]
[333259244,1721998240613,-151.670762,0.00014061,2]
[333259245,1721998240623,-151.0,0.00014061,2]
[333259246,1721998240634,-151.0,0.00014061,2]
[333259247,1721998240647,-151.0,0.00014061,2]
[333259248,1721998240656,-152.466772,0.00014061,2]
[333259249,1721998240666,-151.0,0.00014061,2]
[333259250,1721998240676,-368.960232,0.00014061,2]
[333259251,1721998240686,-368.960232,0.00014061,2]
[333259252,1721998240696,-249.685121,0.00014068,2]
[333259253,1721998240705,-151.0,0.00014068,2]
[333259254,1721998240715,-260.035117,0.00014068,2]
[333259255,1721998240724,-260.035117,0.00014068,2]
[333259256,1721998240734,-631.046236,0.00014068,2]
[333259257,1721998240743,-631.046236,0.00014068,2]
[333259258,1721998240754,-500.0,0.00014069,2]
[333259259,1721998240765,-500.0,0.00014069,2]
[333259260,1721998240775,-500.0,0.00014069,2]
[333259261,1721998240786,-554.96,0.00014069,2]
[333259262,1721998240797,-500.0,0.00014069,2]
[333259263,1721998240807,-500.0,0.00014069,2]
[333259264,1721998240816,-500.0,0.00014069,2]
[333259265,1721998240826,-500.0,0.00014069,2]
[333259266,1721998240837,-500.0,0.00014069,2]
[333259267,1721998240847,-917.63,0.00014069,2]
[333259268,1721998240857,-500.0,0.00014069,2]
[333259269,1721998240867,-500.0,0.00014069,2]
[333259270,1721998240877,-1016.53,0.00014069,2]
[333259271,1721998240888,-500.0,0.00014069,2]
[333259272,1721998240901,-500.0,0.00014069,2]
[333259273,1721998240911,-500.0,0.00014069,2]
[333259274,1721998240920,-500.0,0.00014069,2]
[333259275,1721998240930,-500.0,0.00014069,2]
[333259276,1721998240939,-500.0,0.0001407,2]
[333259277,1721998240949,-500.0,0.0001407,2]
[333259278,1721998240958,-500.0,0.0001407,2]
[333259279,1721998240967,-510.5,0.0001407,2]
[333259280,1721998240977,-779.45,0.0001407,2]
[333259281,1721998240987,-500.0,0.0001407,2]
[333259282,1721998240996,-500.0,0.0001407,2]
[333259283,1721998241006,-500.0,0.0001407,2]
[333259284,1721998241016,-500.0,0.0001407,2]
[333259285,1721998241025,-151.0,0.0001407,2]
[333259286,1721998241035,-151.0,0.0001407,2]
[333259287,1721998241044,-688.19,0.0001407,2]
[333259288,1721998241054,-500.0,0.0001407,2]
[333259289,1721998241064,-500.0,0.0001407,2]
[333259290,1721998241074,-500.0,0.0001407,2]
[333259291,1721998241084,-743.43,0.0001407,2]
[333259292,1721998241094,-500.0,0.0001407,2]
[333259293,1721998241103,-500.0,0.0001407,2]
[333259294,1721998241113,-368.960232,0.0001407,2]
[333259295,1721998241123,-368.960232,0.0001407,2]
[333259296,1721998241133,-500.0,0.0001407,2]
[333259297,1721998241145,-680.81,0.0001407,2]
[333259298,1721998241158,-500.0,0.0001407,2]
[333259299,1721998241167,-500.0,0.0001407,2]
[333259300,1721998241178,-500.0,0.0001407,2]
[333259301,1721998241192,-500.0,0.0001407,2]
[333259302,1721998241203,-500.0,0.0001407,2]
[333259303,1721998241213,-260.035117,0.0001407,2]
[333259304,1721998241224,-260.035117,0.0001407,2]
[333259305,1721998241234,-151.0,0.00014071,2]
[333259306,1721998241244,-151.0,0.00014071,2]
[333259307,1721998241254,-151.0,0.00014071,2]
[333259308,1721998241268,-368.960232,0.00014071,2]
[333259309,1721998241278,-368.960232,0.00014071,2]
[333259310,1721998241288,-151.0,0.00014071,2]
[333259311,1721998241298,-268.724,0.00014094,2]
[333259312,1721998241307,-620.00000001,0.00014161,2]
[333259313,1721998241318,-151.0,0.00014196,2]
[333259314,1721998241328,-263.999754,0.00014196,2]
[333259315,1721998241339,-174.080281,0.00014211,2]
[333259316,1721998241350,-171.774381,0.00014211,2]
[333259317,1721998241362,-157.086836,0.00014211,2]
[333259318,1721998241372,-172.420129,0.00014211,2]
[333259319,1721998241382,-283.466985,0.00014211,2]
[333259320,1721998241392,-385.947811,0.00014211,2]
[333259321,1721998241402,-500.0,0.00014246,2]
[333259322,1721998241411,-500.0,0.00014246,2]
[333259323,1721998241421,-500.0,0.00014246,2]
[333259324,1721998241431,-500.0,0.00014246,2]
[333259325,1721998241440,-570.16,0.00014246,2]
[333259326,1721998241450,-500.0,0.00014246,2]
[333259327,1721998241459,-502.75,0.00014246,2]
[333259328,1721998241470,-937.48,0.00014246,2]
[333259329,1721998241481,-500.0,0.00014246,2]
[333259330,1721998241491,-500.0,0.00014246,2]
[333259331,1721998241502,-737.16224,0.00014247,2]
[333259332,1721998241515,-750.0,0.00014247,2]
[333259333,1721998241526,-166.666666,0.00014257,2]
[333259334,1721998241536,-500.0,0.00014259,2]
[333259335,1721998241547,-151.0,0.0001426,2]
[333259336,1721998241559,-153.0,0.00014261,2]
[333259337,1721998241570,-153.0,0.00014261,2]
[333259338,1721998241579,-153.0,0.00014261,2]
[333259339,1721998241588,-153.0,0.00014261,2]
[333259340,1721998241597,-153.0,0.00014261,2]
[333259341,1721998241608,-631.046236,0.00014281,2]
[333259342,1721998241618,-631.046236,0.00014281,2]
[333259343,1721998241628,-4276.617,0.00014302,2]
[333259344,1721998241637,-151.0,0.00014324,2]
[333259345,1721998241827,-500.0,0.00014332,2]
[333259346,1721998241837,-707.1,0.00014332,2]
[333259347,1721998241846,-2286.64,0.00014332,2]
[333259348,1721998241857,-584.0,0.00014332,2]
[333259349,1721998241867,-2128.79162658,0.00014332,2]
[333259350,1721998242351,-500.0,0.00013698,2]
[333259351,1721998242361,-2291.46837342,0.00014332,2]
[333259352,1721998242370,-500.0,0.00014332,2]
[333259353,1721998242380,-2650.52,0.00014332,2]
[333259354,1721998242389,-844.35,0.00014332,2]
[333259355,1721998242400,-658.46,0.00014332,2]
[333259356,1721998242409,-881.81,0.00014332,2]
[333259357,1721998242419,-640.6,0.00014332,2]
[333259358,1721998242429,-755.57,0.00014332,2]
[333259359,1721998242439,-500.0,0.00014332,2]
[333259360,1721998242448,-650.83,0.00014332,2]
[333259361,1721998242457,-500.0,0.00014332,2]
[333259362,1721998242466,-306.09506859,0.00014332,2]
[333259363,1721998242476,-500.0,0.00014332,2]
[333259364,1721998242486,-1905.13,0.00014332,2]
[333259365,1721998242495,-875.86,0.00014332,2]
[333259367,1721998242504,-538.83,0.00014333,2]
[333259368,1721998242513,-611.7,0.00014333,2]
[333259369,1721998242523,-1256.55,0.00014333,2]
[333259370,1721998242532,-254.46847658,0.00014333,2]
[333259371,1721998242541,-500.0,0.00014333,2]
[333259372,1721998242551,-542.61,0.00014333,2]
[333259373,1721998242561,-893.43,0.00014333,2]
[333259374,1721998242572,-500.0,0.00014333,2]
[333259375,1721998242583,-500.0,0.00014333,2]
[333259376,1721998242593,-500.0,0.00014333,2]
[333259377,1721998242602,-500.0,0.00014333,2]
[333259380,1721998242612,-692.32,0.00014333,2]
[333259381,1721998242621,-597.39,0.00014333,2]
[333259382,1721998242630,-922.88,0.00014333,2]
[333259383,1721998242640,-500.0,0.00014333,2]
[333259384,1721998242649,-500.0,0.00014333,2]
[333259385,1721998242659,-565.03,0.00014333,2]
[333259387,1721998242669,-575.55,0.00014333,2]
[333259388,1721998242678,-500.0,0.00014333,2]
[333259390,1721998242688,-276.406393,0.00014333,2]
[333259391,1721998242698,-500.0,0.00014333,2]
[333259392,1721998242707,-500.0,0.00014333,2]
[333259393,1721998242716,-571.03,0.00014333,2]
[333259394,1721998242727,-500.0,0.00014333,2]
[333259395,1721998242736,-500.0,0.00014333,2]
[333259396,1721998242746,-1098.11,0.00014333,2]
[333259397,1721998242756,-500.0,0.00014333,2]
[333259398,1721998242767,-790.2,0.00014333,2]
[333259399,1721998242776,-500.0,0.00014333,2]
[333259400,1721998242787,-1498.14,0.00014333,2]
[333259401,1721998242796,-500.0,0.00014333,2]
[333259402,1721998242806,-793.79,0.00014333,2]
[333259403,1721998242816,-1120.19,0.00014333,2]
[333259404,1721998242825,-1290.54,0.00014333,2]
[333259405,1721998242835,-705.29,0.00014333,2]
[333259406,1721998242844,-4940.57,0.00014333,2]
[333259407,1721998242853,-500.0,0.00014333,2]
[333259408,1721998242863,-885.79,0.00014333,2]
[333259409,1721998242872,-260.035117,0.00014333,2]
[333259410,1721998242882,-500.0,0.00014333,2]
[333259412,1721998242892,-260.035117,0.00014333,2]
[333259414,1721998242902,-500.0,0.00014333,2]
[333259415,1721998242912,-500.0,0.00014333,2]
[333259416,1721998242921,-773.95,0.00014333,2]
[333259417,1721998242932,-529.92,0.00014333,2]
[333259418,1721998242942,-500.0,0.00014333,2]
[333259420,1721998242951,-793.79,0.00014333,2]
[333259422,1721998242960,-500.0,0.00014333,2]
[333259424,1721998242970,-369.5579083,0.00014333,2]
[333259426,1721998242979,-500.0,0.00014333,2]
[333259428,1721998242989,-6334.19,0.00014333,2]
[333259430,1721998243002,-500.0,0.00014333,2]
[333259432,1721998243011,-500.0,0.00014333,2]
[333259434,1721998243020,-1339.65,0.00014333,2]
[333259436,1721998243031,-827.86,0.00014333,2]
[333259438,1721998243041,-2698.27,0.00014333,2]
[333259440,1721998243052,-2071.04,0.00014333,2]
[333259442,1721998243063,-1295.05,0.00014333,2]
[333259443,1721998243074,-500.0,0.00014333,2]
[333259444,1721998243083,-1435.11,0.00014333,2]
[333259445,1721998243093,-879.57,0.00014333,2]
[333259447,1721998243118,-500.0,0.00014333,2]
[333259449,1721998243140,-848.34,0.00014333,2]
[333259450,1721998243171,-500.0,0.00014333,2]
[333259451,1721998243194,-604.97,0.00014333,2]
[333259452,1721998243213,-500.0,0.00014333,2]
[333259453,1721998243234,-500.0,0.00014333,2]
[333259454,1721998243259,-658.82,0.00014333,2]
[333259455,1721998243285,-825.36,0.00014333,2]
[333259456,1721998243310,-500.0,0.00014333,2]
[333259457,1721998243334,-500.0,0.00014333,2]
[333259459,1721998243354,-1439.07,0.00014333,2]
[333259460,1721998243364,-814.46,0.00014333,2]
[333259462,1721998243373,-500.0,0.00014333,2]
[333259464,1721998243382,-500.0,0.00014333,2]
[333259465,1721998243393,-848.03,0.00014333,2]
[333259466,1721998243403,-525.89,0.00014333,2]
[333259467,1721998243413,-500.0,0.00014333,2]
[333259468,1721998243422,-500.0,0.00014333,2]
[333259469,1721998243432,-500.0,0.00014333,2]
[333259470,1721998243441,-742.79,0.00014333,2]
[333259471,1721998243450,-151.0,0.00014334,2]
[333259472,1721998243459,-151.0,0.00014335,2]
[333259473,1721998243468,-339.38754184,0.0001434,2]
[333259474,1721998243479,-151.0,0.00014342,2]
[333259475,1721998243488,-151.0,0.00014342,2]
[333259476,1721998243497,-368.960232,0.00014342,2]
[333259477,1721998243507,-368.960232,0.00014342,2]
[333259478,1721998243517,-631.046236,0.00014342,2]
[333259479,1721998243526,-631.046236,0.00014342,2]
[333259480,1721998243535,-151.0,0.00014343,2]
[333259481,1721998243544,-500.0,0.00014343,2]
[333259482,1721998243554,-500.0,0.00014343,2]
[333259483,1721998243562,-500.0,0.00014343,2]
[333259484,1721998243571,-554.96,0.00014343,2]
[333259485,1721998243581,-500.0,0.00014343,2]
[333259486,1721998243590,-500.0,0.00014343,2]
[333259487,1721998243599,-476.9930559,0.00014343,2]
[333259488,1721998243608,-500.0,0.00014343,2]
[333259489,1721998243618,-917.63,0.00014343,2]
[333259490,1721998243627,-500.0,0.00014343,2]
[333259491,1721998243636,-500.0,0.00014343,2]
[333259492,1721998243646,-1016.53,0.00014343,2]
[333259493,1721998243655,-500.0,0.00014343,2]
[333259494,1721998243664,-500.0,0.00014343,2]
[333259495,1721998243674,-500.0,0.00014344,2]
[333259496,1721998243683,-500.0,0.00014344,2]
[333259497,1721998243692,-779.45,0.00014344,2]
[333259498,1721998243701,-500.0,0.00014344,2]
[333259499,1721998243711,-500.0,0.00014344,2]
[333259500,1721998243720,-500.0,0.00014344,2]
[333259501,1721998243729,-500.0,0.00014344,2]
[333259502,1721998243738,-151.0,0.00014344,2]
[333259503,1721998243748,-151.0,0.00014344,2]
[333259504,1721998243757,-688.19,0.00014344,2]
[333259505,1721998243767,-500.0,0.00014344,2]
[333259506,1721998243776,-743.43,0.00014344,2]
[333259507,1721998243785,-500.0,0.00014344,2]
[333259508,1721998243794,-500.0,0.00014344,2]
[333259509,1721998243804,-368.960232,0.00014344,2]
[333259510,1721998243813,-368.960232,0.00014344,2]
[333259511,1721998243822,-500.0,0.00014344,2]
[333259512,1721998243831,-680.81,0.00014344,2]
[333259513,1721998243840,-417.85646683,0.00014344,2]
[333259514,1721998243849,-500.0,0.00014344,2]
[333259515,1721998243858,-500.0,0.00014344,2]
[333259516,1721998243870,-260.035117,0.00014344,2]
[333259517,1721998243879,-260.035117,0.00014344,2]
[333259518,1721998243888,-151.0,0.00014345,2]
[333259519,1721998243898,-151.0,0.00014345,2]
[333259520,1721998243907,-283.466985,0.00014389,2]
[333259521,1721998243916,-385.947811,0.00014389,2]
[333259522,1721998243925,-17063.53645,0.00014473,2]
[333259523,1721998244757,-3473.76312243,0.00014473,2]
[333259524,1721998244767,-151.0,0.00014473,2]
[333259525,1721998244776,-151.0,0.00014473,2]
[333259526,1721998244785,-151.0,0.00014473,2]
[333259527,1721998244794,-151.0,0.00014473,2]
[333259528,1721998244803,-500.0,0.0001452,2]
[333259529,1721998244812,-500.0,0.0001452,2]
[333259530,1721998244821,-500.0,0.0001452,2]
[333259531,1721998244830,-322.8742339,0.0001452,2]
[333259532,1721998244839,-570.16,0.0001452,2]
[333259533,1721998244848,-500.0,0.0001452,2]
[333259534,1721998244859,-502.75,0.0001452,2]
[333259535,1721998244868,-937.48,0.0001452,2]
[333259536,1721998244877,-500.0,0.0001452,2]
[333259537,1721998244886,-500.0,0.0001452,2]
[333259538,1721998244897,-160.0,0.0001455,4]
[333259539,1721998244906,-160.0,0.0001455,5]
[333259540,1721998244916,-171.774381,0.00014567,2]
[333259541,1721998244927,-283.466985,0.00014567,2]
[333259542,1721998244938,-385.947811,0.00014567,2]
[333259543,1721998244947,-500.0,0.00014606,2]
[333259544,1721998244957,-707.1,0.00014606,2]
[333259545,1721998244966,-2286.64,0.00014606,2]
[333259546,1721998244975,-291.13637567,0.00014606,2]
[333259563,1721998246169,-292.86362433,0.00014606,2]
[333259564,1721998246179,-4420.26,0.00014606,2]
[333259565,1721998246191,-500.0,0.00014606,2]
[333259566,1721998246201,-778.68998167,0.00014606,2]
[333259567,1721998246588,-1871.83001833,0.00014606,2]
[333259568,1721998246598,-844.35,0.00014606,2]
[333259570,1721998246607,-658.46,0.00014606,2]
[333259572,1721998246617,-265.35998167,0.00014606,2]
[333259581,1721998248815,-500.0,0.00013784,2]
[333259582,1721998248825,-500.0,0.00014058,2]
[333259583,1721998248835,-616.45001833,0.00014606,2]
[333259584,1721998248845,-640.6,0.00014606,2]
[333259585,1721998248855,-755.57,0.00014606,2]
[333259586,1721998248866,-500.0,0.00014606,2]
[333259587,1721998248875,-650.83,0.00014606,2]
[333259588,1721998248886,-500.0,0.00014606,2]
[333259589,1721998248897,-500.0,0.00014606,2]
[333259590,1721998248906,-1905.13,0.00014606,2]
[333259591,1721998248917,-875.86,0.00014606,2]
[333259592,1721998248929,-538.83,0.00014607,2]
[333259593,1721998248939,-611.7,0.00014607,2]
[333259594,1721998248948,-1256.55,0.00014607,2]
[333259595,1721998248958,-500.0,0.00014607,2]
[333259596,1721998248968,-542.61,0.00014607,2]
[333259597,1721998248977,-893.43,0.00014607,2]